bitfinex/quotes_BTCUSD_20260307
["timestamp","ask_amount","ask_price","bid_price","bid_amount"]
[1772847705450,0.00148,68240.0,68236.0,0.04218581]
[1772847705856,0.00148,68240.0,68236.0,0.11546013]
[1772847706058,0.00148,68240.0,68237.0,0.04218581]
[1772847706256,0.07348871,68242.0,68237.0,0.04218581]
[1772847706599,0.00148,68240.0,68237.0,0.04218581]
[1772847706815,0.00148,68240.0,68237.0,0.11545964]
[1772847707229,0.07348871,68242.0,68237.0,0.11545964]
[1772847707431,0.00148,68241.0,68237.0,0.11545964]
[1772847707842,0.00148,68240.0,68237.0,0.11545964]
[1772847708177,0.00148,68244.0,68238.0,0.04218581]
[1772847708855,0.00148,68244.0,68237.0,0.07327383]
[1772847711504,0.00022001,68242.0,68236.0,0.07327432]
[1772847716008,0.00022001,68242.0,68236.0,0.07310582]
[1772847716211,0.00022001,68242.0,68224.0,0.21906479]
[1772847716212,0.00022001,68242.0,68226.0,0.07338644]
[1772847716457,0.0191661,68241.0,68226.0,0.0733868]
[1772847716615,0.0191661,68241.0,68226.0,0.07338715]
[1772847717482,0.0180895,68239.0,68226.0,0.0001014]
[1772847717689,0.0732708,68240.0,68226.0,0.0001014]
[1772847717690,0.00148,68238.0,68226.0,0.0001014]
[1772847717911,0.0180895,68237.0,68226.0,0.0001014]
[1772847718201,0.0180895,68237.0,68229.0,0.0002]
[1772847719285,0.0732751,68236.0,68229.0,0.0002]
[1772847720803,0.0732751,68236.0,68226.0,0.0001014]
[1772847721005,0.0732751,68236.0,68221.0,0.07357551]
[1772847721006,0.0180895,68235.0,68221.0,0.07357551]
[1772847721546,0.07327725,68234.0,68221.0,0.07357551]
[1772847721750,0.0180895,68233.0,68221.0,0.07357551]
[1772847721924,0.02031351,68232.0,68221.0,0.07357551]
[1772847722127,0.02031351,68232.0,68221.0,0.00028464]
[1772847722444,0.02031351,68232.0,68221.0,0.07357553]
[1772847722682,0.02031351,68232.0,68221.0,0.00028464]
[1772847723961,0.07328047,68231.0,68221.0,0.00028464]
[1772847724389,0.07328047,68231.0,68221.0,0.07357579]
[1772847724814,0.07328047,68231.0,68222.0,0.0239054]
[1772847726323,0.07328047,68231.0,68223.0,0.07328906]
[1772847726648,0.07328047,68231.0,68223.0,0.09719446]
[1772847730568,0.07327453,68237.0,68223.0,0.09719446]
[1772847730569,0.00148,68234.0,68224.0,0.0239054]
[1772847730747,0.07326995,68241.0,68225.0,0.01952053]
[1772847730947,0.00148,68236.0,68226.0,0.0239054]
[1772847732379,0.00148,68236.0,68228.0,0.0239054]
[1772847734430,0.00148,68236.0,68229.0,0.07328262]
[1772847734728,0.00148,68236.0,68230.0,0.0239054]
[1772847736870,0.00148,68243.0,68233.0,0.0239054]
[1772847736995,0.00022001,68247.0,68233.0,0.0239054]
[1772847737200,0.07474544,68246.0,68234.0,0.0239054]
[1772847738142,0.07326544,68246.0,68234.0,0.0253854]
[1772847739280,0.07348545,68246.0,68236.0,0.0239054]
[1772847744538,0.07348545,68246.0,68237.0,0.07327403]
[1772847745400,0.07348545,68246.0,68238.0,0.0239054]
[1772847747041,0.07348545,68246.0,68239.0,0.07327188]
[1772847748947,0.00148,68245.0,68240.0,0.0239054]
[1772847749433,0.00148,68245.0,68240.0,0.09717567]
[1772847749925,0.00148,68245.0,68240.0,0.09700719]
[1772847751834,0.00022001,68249.0,68235.0,0.07327617]
[1772847751981,0.0004,68250.0,68236.0,0.02382116]
[1772847752179,0.0004,68250.0,68239.0,0.0187657]
[1772847752432,0.0004,68250.0,68240.0,0.02382116]
[1772847753039,0.00022001,68246.0,68240.0,0.02382116]
[1772847755218,0.00022001,68246.0,68242.0,0.02382116]
[1772847756399,0.00060507,68246.0,68242.0,0.02382116]
[1772847757647,0.00060507,68246.0,68243.0,0.07326758]
[1772847757819,0.00060507,68246.0,68244.0,0.02382116]
[1772847758015,0.0004,68250.0,68244.0,0.02382116]
[1772847758221,0.00049024,68250.0,68244.0,0.02382116]
[1772847759892,0.07375035,68250.0,68243.0,0.07326758]
[1772847760391,0.00022001,68249.0,68243.0,0.07326758]
[1772847763297,0.07348121,68249.0,68234.0,0.0002]
[1772847763501,0.07348121,68249.0,68220.0,0.0002]
[1772847763502,0.01841948,68248.0,68228.0,0.02382116]
[1772847765826,0.01841948,68246.0,68228.0,0.09710434]
[1772847766053,0.01841948,68244.0,68227.0,0.0002]
[1772847766258,0.01841948,68244.0,68227.0,0.07348433]
[1772847768312,0.01841948,68242.0,68227.0,0.07348433]
[1772847769071,0.01841948,68242.0,68227.0,0.0002]
[1772847769272,0.01841948,68242.0,68223.0,0.0002]
[1772847769273,0.01841948,68239.0,68223.0,0.0002]
[1772847769597,0.04685922,68240.0,68223.0,0.0002]
[1772847769598,0.01841948,68237.0,68223.0,0.0002]
[1772847770581,0.0732751,68236.0,68223.0,0.0002]
[1772847770739,0.01841948,68235.0,68223.0,0.0002]
[1772847771767,0.01841948,68235.0,68220.0,0.0002]
[1772847772887,0.01841948,68233.0,68220.0,0.0002]
[1772847773087,0.01841948,68231.0,68220.0,0.0002]
[1772847775196,0.09170102,68230.0,68220.0,0.0002]
[1772847777416,0.07327954,68232.0,68221.0,0.02382116]
[1772847777615,0.00148,68231.0,68221.0,0.02382116]
[1772847779397,9.47e-05,68237.0,68222.0,0.07329014]
[1772847779615,0.00148,68236.0,68223.0,0.02382116]
[1772847780671,9.47e-05,68237.0,68225.0,0.02382116]
[1772847780882,9.47e-05,68237.0,68227.0,0.02382116]
[1772847782666,9.47e-05,68237.0,68228.0,0.07328369]
[1772847782909,9.47e-05,68237.0,68229.0,0.02382116]
[1772847785168,0.0749693,68242.0,68231.0,0.02382116]
[1772847785728,0.0734893,68242.0,68231.0,0.02382116]
[1772847786029,0.0734893,68242.0,68232.0,0.02382116]
[1772847786634,0.07339081,68244.0,68232.0,0.02075762]
[1772847786930,0.07339081,68244.0,68233.0,0.02382116]
[1772847787323,0.0001237,68244.0,68234.0,0.07327725]
[1772847787529,0.0001237,68244.0,68235.0,0.02382116]
[1772847789375,0.07326758,68243.0,68236.0,0.0732751]
[1772847789572,0.07326758,68243.0,68237.0,0.02382116]
[1772847791616,0.07326758,68243.0,68237.0,0.09709483]
[1772847794949,0.07326758,68243.0,68234.0,0.02382116]
[1772847795815,0.07326758,68243.0,68229.0,0.0002]
[1772847795986,0.01841068,68242.0,68229.0,0.0002]
[1772847796946,0.09168041,68241.0,68229.0,0.0002]
[1772847797168,0.01841068,68240.0,68229.0,0.0002]
[1772847797370,0.01989068,68239.0,68229.0,0.0002]
[1772847799889,0.07327295,68238.0,68223.0,0.0002]
[1772847800093,0.01841068,68237.0,68216.0,0.07349584]
[1772847800469,0.01841068,68237.0,68217.0,0.02382116]
[1772847801500,0.01853438,68237.0,68217.0,0.02382116]
[1772847802223,0.01853438,68237.0,68218.0,0.09711559]
[1772847802224,0.01841068,68235.0,68218.0,0.09711559]
[1772847804893,0.01841068,68233.0,68218.0,0.02382116]
[1772847805101,0.01841068,68231.0,68218.0,0.02382116]
[1772847806070,0.01841068,68231.0,68218.0,0.09711558]
[1772847806674,0.01841068,68231.0,68218.0,0.09731558]
[1772847807073,0.07328154,68230.0,68218.0,0.09731558]
[1772847812873,0.07328154,68230.0,68218.0,0.02402116]
[1772847816694,0.07328149,68231.0,68218.0,0.02402116]
[1772847816859,0.00148,68230.0,68220.0,0.02310901]
[1772847817289,0.07328149,68231.0,68220.0,0.02310901]
[1772847817492,0.00148,68230.0,68220.0,0.02310901]
[1772847818698,0.07328262,68229.0,68221.0,0.02310901]
[1772847819224,0.07128262,68229.0,68221.0,0.02310901]
[1772847819929,0.07128262,68229.0,68221.0,0.02349407]
[1772847823507,0.07128262,68229.0,68221.0,0.09678527]
[1772847823713,0.07128262,68229.0,68222.0,0.02310901]
[1772847823924,0.07339789,68237.0,68225.0,0.02310901]
[1772847824317,0.00148,68241.0,68228.0,0.01901632]
[1772847824558,0.07326866,68242.0,68221.0,0.07367626]
[1772847824559,0.07326866,68242.0,68230.0,0.02310901]
[1772847824755,0.00148,68241.0,68230.0,0.02310901]
[1772847825203,0.07474866,68242.0,68232.0,0.02310901]
[1772847825498,0.07326866,68242.0,68232.0,0.02310901]
[1772847825899,0.07343036,68242.0,68232.0,0.02310901]
[1772847827290,0.07343036,68242.0,68233.0,0.07327832]
[1772847827466,0.07343036,68242.0,68234.0,0.02310901]
[1772847828770,0.00022001,68241.0,68234.0,0.02310901]
[1772847829383,0.0732708,68240.0,68234.0,0.02310901]
[1772847830939,0.00038171,68241.0,68234.0,0.0732762]
[1772847831142,0.0734884,68243.0,68234.0,0.0732762]
[1772847831143,0.00022001,68243.0,68235.0,0.02310901]
[1772847833319,0.00062001,68250.0,68236.0,0.0732751]
[1772847833515,0.07378801,68250.0,68238.0,0.02310901]
[1772847833955,0.01947676,68249.0,68238.0,0.02310901]
[1772847834124,0.01947676,68249.0,68230.0,0.000127]
[1772847834889,0.01947676,68249.0,68235.0,0.001]
[1772847835290,0.01947676,68249.0,68230.0,0.000127]
[1772847835688,0.07326222,68248.0,68230.0,0.000127]
[1772847835920,0.01947676,68247.0,68230.0,0.000127]
[1772847836118,0.01947676,68245.0,68230.0,0.000127]
[1772847836720,0.01947676,68245.0,68234.0,0.0002]
[1772847837116,0.01888047,68243.0,68234.0,0.0002]
[1772847838782,0.07326866,68242.0,68234.0,0.0002]
[1772847840793,0.0732708,68240.0,68234.0,0.0002]
[1772847842823,0.0747508,68240.0,68234.0,0.0002]
[1772847850285,0.0943565,68240.0,68232.0,0.07327939]
[1772847851183,0.0943565,68240.0,68234.0,0.0002]
[1772847851359,0.09457651,68240.0,68234.0,0.0002]
[1772847853348,0.07497081,68240.0,68234.0,0.0002]
[1772847857173,0.0196057,68239.0,68221.0,0.00038506]
[1772847857367,0.0196057,68239.0,68223.0,3.49e-05]
[1772847858274,0.0196057,68239.0,68223.0,0.07332365]
[1772847859058,0.07327295,68238.0,68223.0,0.0003409]
[1772847859313,0.0196057,68237.0,68223.0,0.0003409]
[1772847859475,0.00148,68236.0,68223.0,0.02315863]
[1772847862496,0.07327617,68235.0,68223.0,0.02315863]
[1772847863794,0.09288187,68235.0,68223.0,0.02315863]
[1772847865773,0.07327617,68235.0,68221.0,0.00038506]
[1772847865933,0.0196057,68234.0,68221.0,0.00038506]
[1772847866144,0.0196057,68234.0,68223.0,0.0002]
[1772847866664,0.07327832,68233.0,68223.0,0.0002]
[1772847869177,0.09288402,68233.0,68223.0,0.0002]
[1772847870558,0.07327832,68234.0,68223.0,0.01166382]
[1772847870739,0.00148,68233.0,68223.0,0.01166382]
[1772847871100,0.07327939,68232.0,68224.0,0.08475181]
[1772847871299,0.07475939,68232.0,68224.0,0.08475181]
[1772847879035,0.07475939,68232.0,68224.0,0.01146382]
[1772847880726,0.07475939,68232.0,68223.0,0.0002]
[1772847880929,0.01803837,68231.0,68221.0,0.00038506]
[1772847881053,0.09131991,68230.0,68221.0,0.00038506]
[1772847881258,0.01803837,68229.0,68221.0,0.00038506]
[1772847882388,0.01803837,68229.0,68216.0,0.01166382]
[1772847883181,0.07328369,68228.0,68216.0,0.01166382]
[1772847884934,0.07328369,68228.0,68212.0,0.0002]
[1772847884935,0.0004,68225.0,68197.0,0.01146382]
[1772847885188,0.11640253,68219.0,68197.0,0.01146382]
[1772847885381,0.01803837,68216.0,68198.0,0.18946535]
[1772847885997,0.01803837,68216.0,68198.0,0.19046535]
[1772847886406,0.01834287,68216.0,68198.0,0.18946535]
[1772847888171,0.01803837,68214.0,68198.0,0.27424478]
[1772847888300,0.01834287,68214.0,68199.0,0.01146382]
[1772847888502,0.00148,68213.0,68200.0,0.01146382]
[1772847888703,0.0003045,68214.0,68200.0,0.01146382]
[1772847889104,0.0016768,68219.0,68204.0,0.01146382]
[1772847889649,0.0016768,68219.0,68206.0,0.01146382]
[1772847890058,0.0016768,68219.0,68207.0,0.07330625]
[1772847890265,0.0016768,68219.0,68208.0,0.01146382]
[1772847891863,0.07328587,68226.0,68207.0,0.07330625]
[1772847891864,0.07368715,68225.0,68210.0,0.01146382]
[1772847892064,0.00148,68224.0,68213.0,0.07329981]
[1772847892266,0.00148,68224.0,68214.0,0.01146382]
[1772847894288,0.00148,68224.0,68215.0,0.07329766]
[1772847894471,0.00148,68224.0,68216.0,0.01146382]
[1772847894638,0.00148,68227.0,68216.0,0.01146382]
[1772847895766,0.14574078,68244.0,68215.0,0.07329766]
[1772847895767,0.02022001,68246.0,68217.0,0.00148]
[1772847895996,0.07348796,68243.0,68218.0,0.01146382]
[1772847896185,0.07348892,68242.0,68218.0,0.01146382]
[1772847896346,0.0016768,68241.0,68220.0,0.01146382]
[1772847896964,0.0001968,68241.0,68220.0,0.01146382]
[1772847897378,0.00022001,68242.0,68220.0,0.01259342]
[1772847897612,0.02022001,68242.0,68220.0,0.01259342]
[1772847897816,1e-08,68243.0,68223.0,0.01146382]
[1772847898074,1e-08,68246.0,68226.0,0.01925513]
[1772847898222,1e-08,68246.0,68229.0,0.01146382]
[1772847898431,1e-08,68246.0,68231.0,0.01925513]
[1772847898672,0.00212791,68250.0,68233.0,0.01146382]
[1772847898673,0.00145778,68249.0,68233.0,0.01146382]
[1772847898868,0.00022001,68254.0,68230.0,0.07476154]
[1772847898869,0.03498074,68278.0,68242.0,0.01146382]
[1772847899068,0.03498074,68278.0,68245.0,0.01925513]
[1772847899069,0.01819999,68277.0,68245.0,0.01925513]
[1772847899246,0.01819999,68275.0,68246.0,0.01294382]
[1772847899659,0.01819999,68275.0,68241.0,0.01925513]
[1772847899660,0.01819999,68275.0,68248.0,0.01146382]
[1772847900026,0.09001163,68278.0,68252.0,0.01146382]
[1772847900027,0.00148,68274.0,68252.0,0.01146382]
[1772847900174,0.00148,68274.0,68255.0,0.01925513]
[1772847900456,0.01819999,68272.0,68258.0,0.01146382]
[1772847900863,0.01819999,68272.0,68251.0,0.07325825]
[1772847900864,0.01807999,68272.0,68254.0,0.00148]
[1772847901063,0.00022001,68255.0,68254.0,0.00148]
[1772847901264,0.00022001,68255.0,68254.0,0.01294382]
[1772847901467,0.00022001,68255.0,68254.0,0.01146382]
[1772847901641,0.01819999,68262.0,68254.0,0.01146382]
[1772847901840,0.00148,68266.0,68254.0,0.01146382]
[1772847901841,0.0196265,68266.0,68254.0,0.01146382]
[1772847902703,0.0181465,68264.0,68256.0,0.01146382]
[1772847903240,0.0181465,68264.0,68254.0,8.464e-05]
[1772847904710,0.0181465,68262.0,68254.0,8.464e-05]
[1772847905315,0.0101945,68262.0,68250.0,0.07325946]
[1772847905512,0.01057985,68262.0,68250.0,0.0004]
[1772847906770,0.09139476,68261.0,68251.0,0.07325899]
[1772847907020,0.00148,68260.0,68251.0,0.07325899]
[1772847908236,0.00038535,68262.0,68252.0,0.01146382]
[1772847908465,0.07346527,68264.0,68252.0,0.01146382]
[1772847908669,0.07358078,68264.0,68252.0,0.01294382]
[1772847908866,0.07358078,68264.0,68254.0,0.01146382]
[1772847910067,0.09172728,68264.0,68254.0,0.01146382]
[1772847910279,0.0181465,68263.0,68254.0,0.01146382]
[1772847910678,0.0181465,68263.0,68253.0,0.07325685]
[1772847911120,0.0181465,68261.0,68252.0,0.00148]
[1772847911444,0.0181465,68261.0,68251.0,0.07473867]
[1772847911912,0.0181465,68261.0,68251.0,0.07325867]
[1772847913198,0.0181465,68259.0,68250.0,0.07365969]
[1772847913809,0.0196265,68259.0,68250.0,0.07365969]
[1772847915196,0.0747311,68259.0,68251.0,0.0002]
[1772847915378,0.0928776,68259.0,68251.0,0.0002]
[1772847915635,0.0928776,68259.0,68251.0,0.01166382]
[1772847918344,0.0928776,68259.0,68252.0,0.07325792]
[1772847920224,0.0928776,68259.0,68247.0,0.07326306]
[1772847920225,0.0747311,68259.0,68247.0,0.07326306]
[1772847920402,0.0181465,68258.0,68246.0,0.07474332]
[1772847920801,0.0181465,68258.0,68246.0,0.07326332]
[1772847921791,0.0181465,68258.0,68252.0,0.0002]
[1772847922221,0.07325256,68257.0,68252.0,0.0002]
[1772847922425,0.0181465,68256.0,68252.0,0.0002]
[1772847924424,0.0181465,68254.0,68252.0,0.0002]
[1772847925584,0.0181465,68252.0,68241.0,0.07326921]
[1772847925821,0.0181465,68252.0,68242.0,0.01815655]
[1772847926245,0.07325899,68251.0,68243.0,0.07326758]
[1772847928793,0.07325899,68251.0,68243.0,0.07346758]
[1772847931041,0.07325899,68251.0,68243.0,0.0002]
[1772847931719,0.07325899,68251.0,68243.0,3.153e-05]
[1772847936206,1e-08,68253.0,68243.0,3.153e-05]
[1772847936341,0.07325605,68254.0,68244.0,0.01815251]
[1772847939642,0.07325605,68254.0,68245.0,0.07326544]
[1772847939856,0.07325605,68254.0,68246.0,0.01815026]
[1772847942291,0.07325605,68254.0,68247.0,0.07326329]
[1772847942414,0.07347606,68254.0,68247.0,0.07326329]
[1772847942626,0.01938708,68253.0,68244.0,0.07326544]
[1772847942867,0.01938708,68253.0,68243.0,0.07329877]
[1772847943685,0.07347606,68254.0,68244.0,0.01814807]
[1772847945305,0.07347606,68254.0,68245.0,0.07326544]
[1772847956005,0.07347606,68254.0,68245.0,0.09209872]
[1772847956414,0.07347606,68254.0,68245.0,0.07346544]
[1772847956613,0.07347606,68254.0,68245.0,0.0002]
[1772847958014,0.07347606,68254.0,68245.0,0.01881155]
[1772847958858,0.07347606,68254.0,68246.0,0.07326436]
[1772847964608,0.07347606,68254.0,68246.0,0.091805]
[1772847975254,0.07347606,68254.0,68246.0,0.092005]
[1772847976180,0.07347606,68254.0,68247.0,0.01820108]
[1772847979301,0.07347606,68254.0,68247.0,0.09146376]
[1772847982441,0.00022001,68254.0,68248.0,0.01807029]
[1772847982796,0.0734763,68254.0,68248.0,0.01807029]
[1772847986266,0.0734763,68254.0,68248.0,0.0913325]
[1772847997308,0.0734763,68254.0,68246.0,0.0002]
[1772848009269,0.07325685,68253.0,68246.0,0.0002]
[1772848009497,0.07310371,68253.0,68246.0,0.0002]
[1772848013235,0.07332372,68253.0,68246.0,0.0002]
[1772848017849,0.07332372,68253.0,68246.0,0.01290372]
[1772848018677,0.07332372,68253.0,68247.0,0.07326329]
[1772848018872,0.07346892,68253.0,68247.0,0.07326329]
[1772848021654,0.00036521,68253.0,68247.0,0.07326329]
[1772848022435,0.09435822,68253.0,68247.0,0.07326329]
[1772848022647,0.09435822,68253.0,68247.0,0.02872809]
[1772848022859,0.0736222,68253.0,68246.0,0.02892828]
[1772848023625,0.0736222,68253.0,68245.0,0.0002]
[1772848025641,0.00036521,68253.0,68245.0,0.0002]
[1772848025857,0.00036521,68253.0,68247.0,0.01255637]
[1772848026676,0.07362206,68253.0,68246.0,0.0215295]
[1772848030054,0.07362206,68253.0,68245.0,0.0002]
[1772848030313,0.07347584,68254.0,68245.0,0.0002]
[1772848030612,0.07347584,68254.0,68246.0,0.0215295]
[1772848030813,0.07347584,68254.0,68246.0,0.0445691]
[1772848032332,0.07347584,68254.0,68247.0,0.07326329]
[1772848035720,0.07347584,68254.0,68246.0,0.0472381]
[1772848036033,0.07347584,68254.0,68246.0,0.0215295]
[1772848036267,0.07347584,68254.0,68246.0,0.0472381]
[1772848039076,0.07275584,68254.0,68247.0,0.07326329]
[1772848040720,0.07275584,68254.0,68247.0,0.09927211]
[1772848041949,0.07275584,68254.0,68247.0,0.09947211]
[1772848042150,0.07297585,68254.0,68247.0,0.09947211]
[1772848059939,0.07297585,68254.0,68248.0,0.02617064]
[1772848065246,0.07445585,68254.0,68248.0,0.09943273]
[1772848065820,0.07445585,68254.0,68248.0,0.07326209]
[1772848070133,0.07445585,68254.0,68247.0,0.1214969]
[1772848070883,0.07297585,68254.0,68247.0,0.1214969]
[1772848071049,0.07445585,68254.0,68247.0,0.1214969]
[1772848071860,0.00170001,68254.0,68247.0,0.1214969]
[1772848072467,0.00022001,68254.0,68247.0,0.1214969]
[1772848072669,0.00170001,68254.0,68247.0,0.1214969]
[1772848075028,0.07495679,68254.0,68247.0,0.1214969]
[1772848075340,0.07347679,68254.0,68247.0,0.1214969]
[1772848075549,0.07495679,68254.0,68247.0,0.1214969]
[1772848076128,0.07495679,68254.0,68247.0,0.07346329]
[1772848076296,0.07325678,68254.0,68249.0,0.02616885]
[1772848076524,0.02876188,68254.0,68249.0,0.02616885]
[1772848078845,0.02876188,68254.0,68250.0,0.0261686]
[1772848079059,0.02876188,68254.0,68249.0,0.07326112]
[1772848079354,0.02876188,68254.0,68249.0,0.09942972]
[1772848079895,0.02898189,68254.0,68250.0,0.0261686]
[1772848084340,0.02898189,68254.0,68248.0,0.0002]
[1772848087779,0.02898189,68254.0,68241.0,0.003744]
[1772848087780,0.02049181,68253.0,68241.0,0.003744]
[1772848087981,0.02049181,68253.0,68240.0,0.08070074]
[1772848088206,0.02049181,68253.0,68240.0,0.00595]
[1772848088408,0.07325792,68252.0,68240.0,0.00595]
[1772848088587,0.07325792,68252.0,68241.0,0.0002]
[1772848089441,0.07346002,68252.0,68241.0,0.0002]
[1772848094932,0.0002021,68252.0,68241.0,0.07346973]
[1772848095154,0.0012779,68251.0,68241.0,0.07346973]
[1772848095366,0.00148,68252.0,68241.0,0.07346973]
[1772848095689,0.02898189,68254.0,68242.0,0.0219987]
[1772848096019,0.00022001,68254.0,68241.0,0.07346973]
[1772848096287,0.00148,68258.0,68241.0,0.07346973]
[1772848096486,0.0734697,68260.0,68241.0,0.07346973]
[1772848096643,0.00148,68259.0,68241.0,0.07346973]
[1772848096850,0.00148,68259.0,68243.0,0.07326758]
[1772848097068,0.0734697,68260.0,68243.0,0.07326758]
[1772848097317,0.00148,68259.0,68243.0,0.07326758]
[1772848097678,0.00148,68259.0,68244.0,0.04816598]
[1772848097884,0.00148,68259.0,68246.0,0.04816598]
[1772848098069,0.00148,68259.0,68247.0,0.0219987]
[1772848098271,0.00148,68259.0,68249.0,0.0219987]
[1772848098471,0.00148,68259.0,68251.0,0.0219987]
[1772848098707,0.0734697,68260.0,68253.0,0.04816579]
[1772848098914,0.00148,68258.0,68255.0,0.02616709]
[1772848099083,0.00148,68258.0,68256.0,0.0219987]
[1772848099915,0.07325052,68259.0,68256.0,0.0219987]
[1772848100125,0.00148,68258.0,68246.0,0.07326436]
[1772848100417,0.07325206,68258.0,68246.0,0.07326436]
[1772848100618,0.07473206,68258.0,68247.0,0.04816567]
[1772848100847,0.07473206,68258.0,68246.0,0.07326436]
[1772848101411,0.07473206,68258.0,68249.0,0.04816567]
[1772848101605,0.07495207,68258.0,68250.0,0.0219987]
[1772848101814,0.07495207,68258.0,68250.0,0.04816567]
[1772848102016,0.07495207,68258.0,68251.0,0.0219987]
[1772848104294,0.07495207,68258.0,68252.0,0.07325792]
[1772848105918,0.07495207,68258.0,68252.0,0.09525662]
[1772848108985,0.07495207,68258.0,68251.0,0.07325873]
[1772848109872,0.07495207,68258.0,68251.0,0.09525743]
[1772848112412,0.00170001,68258.0,68251.0,0.07325873]
[1772848112628,0.00170001,68258.0,68252.0,0.04640109]
[1772848113436,0.00170001,68258.0,68253.0,0.07325685]
[1772848113741,0.00170001,68258.0,68254.0,0.02023484]
[1772848113948,0.07495167,68258.0,68253.0,0.0994231]
[1772848114185,0.07495167,68258.0,68253.0,0.11965794]
[1772848115774,0.07495167,68258.0,68253.0,0.09349169]
[1772848115985,0.07461145,68258.0,68253.0,0.09349169]
[1772848116346,0.07461145,68258.0,68253.0,0.07325685]
[1772848116347,0.00135979,68258.0,68253.0,0.07325685]
[1772848116545,0.00135979,68258.0,68254.0,0.02023484]
[1772848117556,0.00170001,68258.0,68252.0,0.07325735]
[1772848121009,0.00022001,68268.0,68258.0,0.02616578]
[1772848121325,0.07494098,68268.0,68263.0,0.01989133]
[1772848121518,0.00022001,68268.0,68265.0,0.01989133]
[1772848121728,0.00170001,68267.0,68265.0,0.02027668]
[1772848122240,0.00022001,68268.0,68265.0,0.02027668]
[1772848122442,0.0001237,68269.0,68266.0,0.04596584]
[1772848122608,0.0016037,68269.0,68266.0,0.04596584]
[1772848122814,0.00148,68268.0,68266.0,0.04596584]
[1772848123658,0.00148,68268.0,68265.0,0.00038535]
[1772848123864,0.0733212,68269.0,68265.0,0.00038535]
[1772848124037,0.00148,68268.0,68265.0,0.00038535]
[1772848126156,0.07472125,68268.0,68265.0,0.00038535]
[1772848126380,0.07494126,68268.0,68265.0,0.00038535]
[1772848127442,0.07494126,68268.0,68262.0,0.11921228]
[1772848127443,0.07494126,68268.0,68260.0,0.07324896]
[1772848127645,0.07532626,68268.0,68260.0,0.07324896]
[1772848128511,0.07532626,68268.0,68260.0,0.07308049]
[1772848131479,0.07532626,68268.0,68259.0,0.07324842]
[1772848133284,0.07532626,68268.0,68260.0,0.0002]
[1772848141199,0.00148,68267.0,68260.0,0.0002]
[1772848143266,0.07472209,68267.0,68260.0,3.153e-05]
[1772848144135,0.07371209,68267.0,68259.0,0.09299189]
[1772848144456,0.07371209,68267.0,68260.0,0.0198804]
[1772848145205,0.07371209,68267.0,68253.0,0.07345577]
[1772848146533,0.07371209,68267.0,68260.0,0.0002]
[1772848146758,0.0739321,68267.0,68260.0,0.0002]
[1772848147975,0.0734621,68267.0,68260.0,0.0002]
[1772848148125,0.00148,68266.0,68260.0,0.0002]
[1772848148578,0.07324397,68265.0,68260.0,0.0002]
[1772848156551,0.00148,68264.0,68260.0,0.0002]
[1772848157113,0.07324397,68265.0,68260.0,0.0002]
[1772848157310,0.00148,68263.0,68260.0,0.0002]
[1772848158310,0.00148,68263.0,68260.0,3.16e-05]
[1772848158772,0.07324719,68262.0,68260.0,3.16e-05]
[1772848160220,0.07324719,68262.0,68256.0,0.02585675]
[1772848160442,0.07324719,68262.0,68256.0,0.02568839]
[1772848164915,0.04544557,68262.0,68256.0,0.09894181]
[1772848165674,0.04527258,68262.0,68256.0,0.09894181]
[1772848166516,0.04527258,68262.0,68256.0,0.09914181]
[1772848166717,0.04527258,68262.0,68256.0,0.07345342]
[1772848166914,0.04527258,68262.0,68251.0,0.0002]
[1772848167117,0.04527258,68262.0,68246.0,0.07346401]
[1772848167581,0.04527258,68262.0,68247.0,0.07346326]
[1772848167787,0.07324609,68264.0,68249.0,0.01922415]
[1772848168036,0.07324609,68264.0,68247.0,0.07346326]
[1772848168037,0.00060501,68268.0,68253.0,0.01922415]
[1772848168254,0.00060501,68268.0,68247.0,0.29290109]
[1772848168255,0.00148,68266.0,68256.0,0.02604326]
[1772848168424,0.07472335,68266.0,68250.0,0.07326007]
[1772848168639,0.07472335,68266.0,68252.0,0.01922415]
[1772848168861,0.07472335,68266.0,68255.0,0.02604214]
[1772848169018,0.00148,68266.0,68257.0,0.02604214]
[1772848169231,0.00148,68266.0,68258.0,0.04526629]
[1772848170530,0.00148,68266.0,68259.0,0.07325041]
[1772848173373,0.00148,68266.0,68259.0,0.11827867]
[1772848173582,0.00170001,68266.0,68259.0,0.11827867]
[1772848175600,0.00170001,68266.0,68259.0,0.11811027]
[1772848175825,0.00170001,68266.0,68259.0,0.09206823]
[1772848176025,0.00170001,68266.0,68259.0,0.11811021]
[1772848177829,0.00170001,68266.0,68259.0,0.0002]
[1772848177963,0.00170001,68266.0,68260.0,0.01878622]
[1772848178161,0.00148,68265.0,68263.0,0.02604193]
[1772848178363,0.07323834,68271.0,68259.0,0.0002]
[1772848178364,0.00022001,68274.0,68266.0,0.01878622]
[1772848178560,0.00022001,68274.0,68259.0,0.0002]
[1772848178561,0.001388,68272.0,68259.0,0.0002]
[1772848178786,0.00148,68271.0,68259.0,0.0002]
[1772848178989,0.0703144,68274.0,68261.0,0.01878622]
[1772848179197,0.00148,68270.0,68264.0,0.02604187]
[1772848179535,0.0703144,68274.0,68267.0,0.04482809]
[1772848179741,0.00148,68273.0,68263.0,0.01878622]
[1772848179942,0.00148,68273.0,68267.0,0.02604187]
[1772848181249,0.07471539,68273.0,68267.0,0.02604187]
[1772848181956,0.07471539,68273.0,68267.0,0.0992827]
[1772848182845,0.07471539,68273.0,68267.0,0.07324083]
[1772848183556,0.07471539,68273.0,68267.0,0.07350113]
[1772848189360,0.07323539,68273.0,68267.0,0.0002603]
[1772848189606,0.00148,68272.0,68267.0,0.02613247]
[1772848190295,0.00148,68272.0,68268.0,0.02600233]
[1772848191669,0.00148,68272.0,68268.0,0.09924231]
[1772848192224,0.00148,68272.0,68269.0,0.0447885]
[1772848194032,0.00148,68271.0,68270.0,0.02602135]
[1772848194354,0.00148,68271.0,68270.0,0.04480757]
[1772848194790,0.00148,68271.0,68268.0,0.07323998]
[1772848194986,0.00148,68271.0,68268.0,0.09926128]
[1772848195217,0.00148,68271.0,68268.0,0.0920262]
[1772848195347,0.00148,68271.0,68269.0,0.0260213]
[1772848197016,0.00148,68271.0,68269.0,0.04480752]
[1772848197732,0.00148,68271.0,68270.0,0.02602126]
[1772848198599,0.001425,68271.0,68270.0,0.02602126]
[1772848198802,5.749e-05,68271.0,68270.0,0.02602126]
[1772848199008,0.00148,68271.0,68270.0,0.02602126]
[1772848199191,0.14996497,68288.0,68270.0,0.02602126]
[1772848199399,0.14996497,68288.0,68273.0,0.07323539]
[1772848199400,0.00011543,68288.0,68273.0,0.07323539]
[1772848199589,0.00011543,68288.0,68275.0,0.01915541]
[1772848199791,0.00011543,68288.0,68279.0,0.01915541]
[1772848200044,0.00011543,68288.0,68281.0,0.01915541]
[1772848200240,0.07929105,68293.0,68284.0,0.02602123]
[1772848200390,0.00148,68287.0,68286.0,0.02601624]
[1772848201301,0.00148,68287.0,68281.0,0.02601624]